fUSD/lending_fUSD_20250613
["ID","MTS","AMOUNT","RATE_DAILY","PERIOD"]
[365537512,1749773441422,-490.0,0.00016989,2]
[365537513,1749773441434,-535.36221329,0.00016989,2]
[365537514,1749773441446,-490.0,0.00016989,2]
[365537515,1749773441459,-490.0,0.00016989,2]
[365537516,1749773441470,-490.0,0.00016989,2]
[365537517,1749773441482,-490.0,0.00016989,2]
[365537518,1749773441494,-490.0,0.00016989,2]
[365537519,1749773441509,-622.04,0.00016989,2]
[365537520,1749773441524,-490.0,0.00016989,2]
[365537521,1749773441535,-490.0,0.00016989,2]
[365537522,1749773441546,-490.0,0.00016989,2]
[365537523,1749773441556,-490.0,0.00016989,2]
[365537524,1749773441568,-490.0,0.00016989,2]
[365537525,1749773441581,-490.0,0.00016989,2]
[365537526,1749773441597,-490.0,0.00016989,2]
[365537527,1749773441610,-1674.44,0.00016989,2]
[365537528,1749773441622,-490.0,0.00016989,2]
[365537529,1749773441633,-490.0,0.00016989,2]
[365537530,1749773441645,-490.0,0.00016989,2]
[365537531,1749773441656,-512.66747883,0.00016989,2]
[365537532,1749773441669,-612.82,0.00016989,2]
[365537533,1749773441681,-622.41,0.00016989,2]
[365537534,1749773441692,-490.0,0.00016989,2]
[365537535,1749773441712,-490.0,0.00016989,2]
[365537536,1749773441723,-490.0,0.00016989,2]
[365537537,1749773441734,-490.0,0.00016989,2]
[365537538,1749773441746,-512.66612213,0.00016989,2]
[365537539,1749773441757,-512.5955664,0.00016989,2]
[365537540,1749773441768,-490.0,0.00016989,2]
[365537541,1749773441780,-490.0,0.00016989,2]
[365537542,1749773441792,-490.0,0.00016989,2]
[365537543,1749773441803,-490.0,0.00016989,2]
[365537544,1749773441815,-846.27,0.00016989,2]
[365537545,1749773441827,-490.0,0.00016989,2]
[365537546,1749773441839,-490.0,0.00016989,2]
[365537547,1749773441856,-490.0,0.00016989,2]
[365537548,1749773441867,-490.0,0.00016989,2]
[365537549,1749773441879,-767.64,0.00016989,2]
[365537550,1749773441892,-490.0,0.00016989,2]
[365537551,1749773441904,-490.0,0.00016989,2]
[365537552,1749773441921,-490.0,0.00016989,2]
[365537553,1749773441933,-490.0,0.00016989,2]
[365537554,1749773441944,-490.0,0.00016989,2]
[365537555,1749773441957,-490.0,0.00016989,2]
[365537556,1749773441969,-490.0,0.00016989,2]
[365537557,1749773441982,-1670.07,0.00016989,2]
[365537558,1749773441994,-490.0,0.00016989,2]
[365537559,1749773442008,-490.0,0.00016989,2]
[365537560,1749773442020,-490.0,0.00016989,2]
[365537561,1749773442032,-490.0,0.00016989,2]
[365537562,1749773442044,-1048.55,0.00016989,2]
[365537563,1749773442056,-490.0,0.00016989,2]
[365537564,1749773442067,-490.0,0.00016989,2]
[365537565,1749773442080,-511.61212066,0.00016989,2]
[365537566,1749773442092,-490.0,0.00016989,2]
[365537567,1749773442110,-490.0,0.00016989,2]
[365537568,1749773442122,-490.0,0.00016989,2]
[365537569,1749773442133,-490.0,0.00016989,2]
[365537570,1749773442145,-490.0,0.00016989,2]
[365537571,1749773442156,-490.0,0.00016989,2]
[365537572,1749773442167,-512.97550423,0.00016989,2]
[365537573,1749773442179,-490.0,0.00016989,2]
[365537574,1749773442191,-332.67,0.00016989,2]
[365537575,1749773442203,-268.13153546,0.00016989,2]
[365537576,1749773442214,-537.19,0.00016989,2]
[365537577,1749773442225,-563.97,0.00016989,2]
[365537578,1749773442238,-490.0,0.00016989,2]
[365537579,1749773442249,-2478.01,0.00016989,2]
[365537580,1749773442261,-1714.32,0.00016989,2]
[365537581,1749773442272,-640.73,0.00016989,2]
[365537582,1749773442284,-490.0,0.00016989,2]
[365537583,1749773442297,-490.0,0.00016989,2]
[365537584,1749773442309,-658.56,0.00016989,2]
[365537585,1749773442320,-490.0,0.00016989,2]
[365537586,1749773442331,-490.0,0.00016989,2]
[365537587,1749773442343,-511.714791,0.00016989,2]
[365537588,1749773442358,-836.9,0.00016989,2]
[365537589,1749773442370,-761.44,0.00016989,2]
[365537590,1749773442382,-490.0,0.00016989,2]
[365537591,1749773442395,-490.0,0.00016989,2]
[365537592,1749773442407,-490.0,0.00016989,2]
[365537593,1749773442419,-774.9,0.00016989,2]
[365537594,1749773442430,-490.0,0.00016989,2]
[365537595,1749773442443,-512.53900624,0.00016989,2]
[365537596,1749773442454,-632.87,0.00016989,2]
[365537597,1749773442466,-490.0,0.00016989,2]
[365537598,1749773442478,-511.16076851,0.00016989,2]
[365537599,1749773442491,-534.63672104,0.00016989,2]
[365537600,1749773442502,-490.0,0.00016989,2]
[365537601,1749773442514,-2161.65,0.00016989,2]
[365537602,1749773442526,-490.0,0.00016989,2]
[365537603,1749773442538,-647.83,0.00016989,2]
[365537605,1749773442552,-490.0,0.00016989,2]
[365537607,1749773442564,-802.77,0.00016989,2]
[365537609,1749773442577,-490.0,0.00016989,2]
[365537611,1749773442589,-490.0,0.00016989,2]
[365537612,1749773442605,-473.11667136,0.00016989,2]
[365537613,1749773442617,-490.0,0.00016989,2]
[365537614,1749773442630,-490.0,0.00016989,2]
[365537615,1749773442641,-731.56,0.00016989,2]
[365537616,1749773442653,-490.0,0.00016989,2]
[365537617,1749773442665,-490.0,0.00016989,2]
[365537618,1749773442676,-490.0,0.00016989,2]
[365537619,1749773442687,-490.0,0.00016989,2]
[365537620,1749773442696,-490.0,0.00016989,2]
[365537621,1749773442706,-490.0,0.00016989,2]
[365537622,1749773442715,-561.54671871,0.00016989,2]
[365537623,1749773442727,-490.0,0.00016989,2]
[365537624,1749773442737,-490.0,0.00016989,2]
[365537625,1749773442745,-490.0,0.00016989,2]
[365537626,1749773442754,-756.19,0.00016989,2]
[365537629,1749773442765,-490.0,0.00016989,2]
[365537630,1749773442777,-490.0,0.00016989,2]
[365537631,1749773442788,-490.0,0.00016989,2]
[365537632,1749773442799,-650.9,0.00016989,2]
[365537633,1749773442810,-490.0,0.00016989,2]
[365537634,1749773442822,-490.0,0.00016989,2]
[365537635,1749773442833,-490.0,0.00016989,2]
[365537636,1749773442848,-490.0,0.00016989,2]
[365537637,1749773442860,-958.7,0.00016989,2]
[365537638,1749773442871,-490.0,0.00016989,2]
[365537639,1749773442883,-490.0,0.00016989,2]
[365537640,1749773442895,-490.0,0.00016989,2]
[365537641,1749773442907,-435.26540042,0.00016989,2]
[365537642,1749773442918,-490.0,0.00016989,2]
[365537643,1749773442930,-490.0,0.00016989,2]
[365537644,1749773442942,-490.0,0.00016989,2]
[365537645,1749773442953,-524.86,0.00016989,2]
[365537646,1749773442964,-685.3,0.00016989,2]
[365537647,1749773442975,-490.0,0.00016989,2]
[365537648,1749773442987,-490.0,0.00016989,2]
[365537649,1749773442997,-490.0,0.00016989,2]
[365537651,1749773443009,-490.0,0.00016989,2]
[365537652,1749773443020,-490.0,0.00016989,2]
[365537653,1749773443030,-490.0,0.00016989,2]
[365537654,1749773443042,-490.0,0.00016989,2]
[365537655,1749773443053,-490.0,0.00016989,2]
[365537656,1749773443065,-2162.42,0.00016989,2]
[365537657,1749773443076,-692.57,0.00016989,2]
[365537658,1749773443087,-511.50298441,0.00016989,2]
[365537659,1749773443102,-490.0,0.00016989,2]
[365537660,1749773443113,-979.76,0.00016989,2]
[365537661,1749773443125,-516.86,0.00016989,2]
[365537662,1749773443136,-534.71,0.00016989,2]
[365537663,1749773443147,-490.0,0.00016989,2]
[365537664,1749773443158,-490.0,0.00016989,2]
[365537665,1749773443169,-490.0,0.00016989,2]
[365537666,1749773443181,-490.0,0.00016989,2]
[365537667,1749773443192,-490.0,0.00016989,2]
[365537668,1749773443203,-490.0,0.00016989,2]
[365537669,1749773443214,-512.29880141,0.00016989,2]
[365537670,1749773443226,-490.0,0.00016989,2]
[365537671,1749773443237,-490.0,0.00016989,2]
[365537672,1749773443248,-490.0,0.00016989,2]
[365537673,1749773443259,-490.0,0.00016989,2]
[365537674,1749773443271,-872.33,0.00016989,2]
[365537675,1749773443282,-717.33,0.00016989,2]
[365537676,1749773443293,-490.0,0.00016989,2]
[365537677,1749773443304,-490.0,0.00016989,2]
[365537678,1749773443315,-430.0,0.00016989,2]
[365537679,1749773443327,-490.0,0.00016989,2]
[365537680,1749773443338,-1029.32,0.00016989,2]
[365537681,1749773443353,-490.0,0.00016989,2]
[365537682,1749773443365,-490.0,0.00016989,2]
[365537683,1749773443377,-589.54,0.00016989,2]
[365537686,1749773443389,-490.0,0.00016989,2]
[365537688,1749773443400,-490.0,0.00016989,2]
[365537690,1749773443411,-494.69230372,0.00016989,2]
[365537692,1749773443422,-450.04607739,0.00016989,2]
[365537694,1749773443433,-3593.52,0.00016989,2]
[365537696,1749773443444,-490.0,0.00016989,2]
[365537698,1749773443454,-490.0,0.00016989,2]
[365537701,1749773443465,-490.0,0.00016989,2]
[365537704,1749773443476,-502.17724037,0.00016989,2]
[365537707,1749773443487,-754.65,0.00016989,2]
[365537709,1749773443498,-490.0,0.00016989,2]
[365537711,1749773443509,-490.0,0.00016989,2]
[365537714,1749773443520,-490.0,0.00016989,2]
[365537716,1749773443531,-490.0,0.00016989,2]
[365537719,1749773443541,-861.1,0.00016989,2]
[365537721,1749773443552,-490.0,0.00016989,2]
[365537723,1749773443563,-490.0,0.00016989,2]
[365537725,1749773443574,-500.0,0.00016989,2]
[365537727,1749773443584,-519.59379815,0.00016989,2]
[365537729,1749773443598,-1174.62,0.00016989,2]
[365537731,1749773443608,-490.0,0.00016989,2]
[365537733,1749773443620,-490.0,0.00016989,2]
[365537736,1749773443631,-490.0,0.00016989,2]
[365537738,1749773443643,-474.34443228,0.00016989,2]
[365537740,1749773443654,-490.0,0.00016989,2]
[365537742,1749773443665,-490.0,0.00016989,2]
[365537744,1749773443676,-490.0,0.00016989,2]
[365537746,1749773443687,-490.0,0.00016989,2]
[365537748,1749773443697,-490.0,0.00016989,2]
[365537750,1749773443708,-490.0,0.00016989,2]
[365537753,1749773443718,-490.0,0.00016989,2]
[365537755,1749773443729,-490.0,0.00016989,2]
[365537757,1749773443739,-739.68,0.00016989,2]
[365537759,1749773443750,-490.0,0.00016989,2]
[365537761,1749773443760,-490.0,0.00016989,2]
[365537763,1749773443770,-490.0,0.00016989,2]
[365537765,1749773443781,-490.0,0.00016989,2]
[365537767,1749773443791,-665.64,0.00016989,2]
[365537769,1749773443802,-490.0,0.00016989,2]
[365537771,1749773443812,-196.61561628,0.00016989,2]
[365537773,1749773443822,-490.0,0.00016989,2]
[365537776,1749773443833,-490.0,0.00016989,2]
[365537778,1749773443843,-526.63,0.00016989,2]
[365537780,1749773443856,-490.0,0.00016989,2]
[365537782,1749773443866,-490.0,0.00016989,2]
[365537784,1749773443876,-516.34950864,0.00016989,2]
[365537786,1749773443887,-490.0,0.00016989,2]
[365537788,1749773443898,-1018.9,0.00016989,2]
[365537791,1749773443908,-490.0,0.00016989,2]
[365537793,1749773443923,-490.0,0.00016989,2]
[365537795,1749773443933,-490.0,0.00016989,2]
[365537797,1749773443944,-420.0,0.00016989,2]
[365537897,1749773444918,-490.0,0.00016989,2]
[365537902,1749773444956,-2095.07,0.00016989,2]
[365537906,1749773444985,-490.0,0.00016989,2]
[365537909,1749773445004,-490.0,0.00016989,2]
[365537912,1749773445026,-490.0,0.00016989,2]
[365537915,1749773445040,-490.0,0.00016989,2]
[365537917,1749773445050,-1032.19,0.00016989,2]
[365537919,1749773445059,-490.0,0.00016989,2]
[365537921,1749773445069,-490.0,0.00016989,2]
[365537923,1749773445079,-490.0,0.00016989,2]
[365537924,1749773445088,-490.0,0.00016989,2]
[365537926,1749773445100,-500.0,0.00016989,2]
[365537928,1749773445110,-500.0,0.00016989,2]
[365537930,1749773445119,-500.0,0.00016989,2]
[365537932,1749773445129,-500.0,0.00016989,2]
[365537934,1749773445139,-490.0,0.00016989,2]
[365537936,1749773445148,-490.0,0.00016989,2]
[365537938,1749773445158,-490.0,0.00016989,2]
[365537940,1749773445167,-490.0,0.00016989,2]
[365537942,1749773445176,-490.0,0.00016989,2]
[365537944,1749773445186,-353.38325876,0.00016989,2]
[365537946,1749773445195,-490.0,0.00016989,2]
[365537948,1749773445204,-490.0,0.00016989,2]
[365537950,1749773445214,-490.0,0.00016989,2]
[365537952,1749773445224,-490.0,0.00016989,2]
[365537954,1749773445233,-490.0,0.00016989,2]
[365537956,1749773445243,-490.0,0.00016989,2]
[365537958,1749773445252,-577.8,0.00016989,2]
[365537960,1749773445262,-490.0,0.00016989,2]
[365537962,1749773445272,-490.0,0.00016989,2]
[365537964,1749773445281,-490.0,0.00016989,2]
[365537965,1749773445290,-490.0,0.00016989,2]
[365537966,1749773445300,-490.0,0.00016989,2]
[365537967,1749773445309,-490.0,0.00016989,2]
[365537968,1749773445319,-490.0,0.00016989,2]
[365537969,1749773445329,-490.0,0.00016989,2]
[365537970,1749773445338,-490.0,0.00016989,2]
[365537971,1749773445352,-490.0,0.00016989,2]
[365537972,1749773445361,-490.0,0.00016989,2]
[365537973,1749773445371,-490.0,0.00016989,2]
[365537974,1749773445380,-490.0,0.00016989,2]
[365537975,1749773445390,-490.0,0.00016989,2]
[365537977,1749773445400,-490.0,0.00016989,2]
[365537979,1749773445410,-490.0,0.00016989,2]
[365537981,1749773445420,-490.0,0.00016989,2]
[365537983,1749773445429,-490.0,0.00016989,2]
[365537985,1749773445440,-756.67,0.00016989,2]
[365537987,1749773445450,-490.0,0.00016989,2]
[365537989,1749773445459,-527.79,0.00016989,2]
[365537991,1749773445469,-490.0,0.00016989,2]
[365537993,1749773445479,-490.0,0.00016989,2]
[365537995,1749773445489,-490.0,0.00016989,2]
[365537997,1749773445498,-492.61,0.00016989,2]
[365537999,1749773445507,-672.98,0.00016989,2]
[365538001,1749773445517,-490.0,0.00016989,2]
[365538004,1749773445527,-490.0,0.00016989,2]
[365538007,1749773445539,-490.0,0.00016989,2]
[365538010,1749773445550,-490.0,0.00016989,2]
[365538013,1749773445560,-490.0,0.00016989,2]
[365538016,1749773445570,-490.0,0.00016989,2]
[365538019,1749773445579,-1661.52,0.00016989,2]
[365538021,1749773445589,-814.35,0.00016989,2]
[365538024,1749773445603,-490.0,0.00016989,2]
[365538028,1749773445614,-490.0,0.00016989,2]
[365538030,1749773445625,-490.0,0.00016989,2]
[365538035,1749773445636,-464.61758886,0.00016989,2]
[365538038,1749773445647,-490.0,0.00016989,2]
[365538040,1749773445657,-490.0,0.00016989,2]
[365538043,1749773445668,-490.0,0.00016989,2]
[365538046,1749773445678,-490.0,0.00016989,2]
[365538049,1749773445688,-490.0,0.00016989,2]
[365538052,1749773445698,-490.0,0.00016989,2]
[365538055,1749773445708,-490.0,0.00016989,2]
[365538058,1749773445721,-490.0,0.00016989,2]
[365538061,1749773445731,-490.0,0.00016989,2]
[365538064,1749773445741,-1429.21,0.00016989,2]
[365538067,1749773445752,-490.0,0.00016989,2]
[365538070,1749773445762,-490.0,0.00016989,2]
[365538073,1749773445773,-673.11,0.00016989,2]
[365538075,1749773445783,-490.0,0.00016989,2]
[365538077,1749773445793,-490.0,0.00016989,2]
[365538079,1749773445803,-2266.6,0.00016989,2]
[365538081,1749773445813,-490.0,0.00016989,2]
[365538083,1749773445823,-490.0,0.00016989,2]
[365538085,1749773445833,-490.0,0.00016989,2]
[365538087,1749773445843,-490.0,0.00016989,2]
[365538089,1749773445860,-490.0,0.00016989,2]
[365538091,1749773445870,-490.0,0.00016989,2]
[365538093,1749773445880,-490.0,0.00016989,2]
[365538095,1749773445890,-490.0,0.00016989,2]
[365538097,1749773445900,-490.0,0.00016989,2]
[365538099,1749773445912,-2062.71,0.00016989,2]
[365538101,1749773445926,-490.0,0.00016989,2]
[365538103,1749773445944,-523.42548328,0.00016989,2]
[365538105,1749773445955,-490.0,0.00016989,2]
[365538107,1749773445969,-490.0,0.00016989,2]
[365538109,1749773445979,-490.0,0.00016989,2]
[365538111,1749773445989,-490.0,0.00016989,2]
[365538113,1749773445999,-490.0,0.00016989,2]
[365538115,1749773446009,-1160.49,0.00016989,2]
[365538117,1749773446019,-490.0,0.00016989,2]
[365538119,1749773446029,-490.0,0.00016989,2]
[365538121,1749773446039,-824.48,0.00016989,2]
[365538123,1749773446049,-490.0,0.00016989,2]
[365538125,1749773446058,-490.0,0.00016989,2]
[365538127,1749773446068,-490.0,0.00016989,2]
[365538129,1749773446078,-490.0,0.00016989,2]
[365538131,1749773446087,-2375.88,0.00016989,2]
[365538133,1749773446099,-490.0,0.00016989,2]
[365538135,1749773446109,-490.0,0.00016989,2]
[365538137,1749773446119,-490.0,0.00016989,2]
[365538139,1749773446128,-490.0,0.00016989,2]
[365538141,1749773446138,-490.0,0.00016989,2]
[365538143,1749773446148,-490.0,0.00016989,2]
[365538145,1749773446157,-490.0,0.00016989,2]
[365538147,1749773446166,-490.0,0.00016989,2]
[365538148,1749773446177,-8750.67,0.00016989,2]
[365538150,1749773446186,-490.0,0.00016989,2]
[365538151,1749773446196,-340.0,0.00016989,2]
[365538152,1749773446205,-490.0,0.00016989,2]
[365538153,1749773446215,-490.0,0.00016989,2]
[365538154,1749773446224,-490.0,0.00016989,2]
[365538155,1749773446234,-490.0,0.00016989,2]
[365538156,1749773446244,-508.66,0.00016989,2]
[365538157,1749773446254,-611.17,0.00016989,2]
[365538158,1749773446264,-1951.05,0.00016989,2]
[365538159,1749773446273,-490.0,0.00016989,2]
[365538160,1749773446283,-905.76,0.00016989,2]
[365538162,1749773446292,-311.55229685,0.00016989,2]
[365538164,1749773446301,-490.0,0.00016989,2]
[365538166,1749773446310,-2472.53,0.00016989,2]
[365538168,1749773446320,-490.0,0.00016989,2]
[365538170,1749773446329,-504.6789276,0.00016989,2]
[365538172,1749773446339,-490.0,0.00016989,2]
[365538173,1749773446354,-1713.04,0.00016989,2]
[365538176,1749773446364,-771.06,0.00016989,2]
[365538178,1749773446374,-490.0,0.00016989,2]
[365538179,1749773446385,-9140.0,0.00016989,2]
[365538180,1749773446396,-490.0,0.00016989,2]
[365538181,1749773446405,-490.0,0.00016989,2]
[365538182,1749773446414,-490.0,0.00016989,2]
[365538183,1749773446424,-32929.48,0.00016989,2]
[365538184,1749773446433,-1475.53,0.00016989,2]
[365538185,1749773446443,-490.0,0.00016989,2]
[365538186,1749773446454,-490.0,0.00016989,2]
[365538187,1749773446464,-490.0,0.00016989,2]
[365538188,1749773446475,-490.0,0.00016989,2]
[365538189,1749773446485,-19549.24,0.00016989,2]
[365538190,1749773446495,-490.0,0.00016989,2]
[365538191,1749773446505,-490.0,0.00016989,2]
[365538192,1749773446516,-490.0,0.00016989,2]
[365538193,1749773446526,-2154.11,0.00016989,2]
[365538194,1749773446535,-694.82,0.00016989,2]
[365538195,1749773446546,-490.0,0.00016989,2]
[365538196,1749773446556,-5844.95,0.00016989,2]
[365538197,1749773446567,-490.0,0.00016989,2]
[365538198,1749773446577,-609.8,0.00016989,2]
[365538199,1749773446587,-743.68,0.00016989,2]
[365538200,1749773446601,-539.77,0.00016989,2]
[365538201,1749773446611,-490.0,0.00016989,2]
[365538202,1749773446622,-5501.96,0.00016989,2]
[365538203,1749773446632,-490.0,0.00016989,2]
[365538204,1749773446644,-490.0,0.00016989,2]
[365538205,1749773446653,-490.0,0.00016989,2]
[365538206,1749773446663,-490.0,0.00016989,2]
[365538207,1749773446674,-490.0,0.00016989,2]
[365538208,1749773446684,-6186.87,0.00016989,2]
[365538209,1749773446694,-490.0,0.00016989,2]
[365538210,1749773446704,-2066.99,0.00016989,2]
[365538211,1749773446715,-1924.77,0.00016989,2]
[365538212,1749773446725,-490.0,0.00016989,2]
[365538213,1749773446736,-891.12,0.00016989,2]
[365538214,1749773446752,-490.0,0.00016989,2]
[365538215,1749773446770,-490.0,0.00016989,2]
[365538216,1749773446783,-3521.16,0.00016989,2]
[365538217,1749773446795,-490.0,0.00016989,2]
[365538218,1749773446807,-1110.38,0.00016989,2]
[365538219,1749773446819,-673.32,0.00016989,2]
[365538220,1749773446831,-2655.53,0.00016989,2]
[365538221,1749773446845,-490.0,0.00016989,2]
[365538222,1749773446867,-490.0,0.00016989,2]
[365538223,1749773446884,-455.76578131,0.00016989,2]
[365538224,1749773446898,-3898.7,0.00016989,2]
[365538225,1749773446909,-490.0,0.00016989,2]
[365538226,1749773446921,-482.98855635,0.00016989,2]
[365538227,1749773446935,-490.0,0.00016989,2]
[365538228,1749773446948,-490.0,0.00016989,2]
[365538229,1749773446959,-490.0,0.00016989,2]
[365538230,1749773446970,-490.0,0.00016989,2]
[365538231,1749773446980,-495.47735822,0.00016989,2]
[365538232,1749773446991,-1549.0,0.00016989,2]
[365538233,1749773447002,-491.88366468,0.00016989,2]
[365538234,1749773447013,-1030.94,0.00016989,2]
[365538235,1749773447023,-6945.49,0.00016989,2]
[365538236,1749773447034,-490.0,0.00016989,2]
[365538237,1749773447045,-422.91023043,0.00016989,2]
[365538238,1749773447056,-490.0,0.00016989,2]
[365538239,1749773447067,-1698.14,0.00016989,2]
[365538240,1749773447076,-490.0,0.00016989,2]
[365538241,1749773447088,-3040.2,0.00016989,2]
[365538242,1749773447101,-490.0,0.00016989,2]
[365538243,1749773447111,-490.0,0.00016989,2]
[365538244,1749773447121,-461.35930957,0.00016989,2]
[365538245,1749773447131,-2192.46,0.00016989,2]
[365538246,1749773447144,-490.0,0.00016989,2]
[365538247,1749773447154,-490.0,0.00016989,2]
[365538248,1749773447164,-1031.55,0.00016989,2]
[365538249,1749773447174,-427.82485022,0.00016989,2]
[365538250,1749773447185,-490.0,0.00016989,2]
[365538251,1749773447195,-474.32881093,0.00016989,2]
[365538252,1749773447206,-1428.39,0.00016989,2]
[365538253,1749773447216,-1000.0,0.00016989,2]
[365538254,1749773447226,-490.0,0.00016989,2]
[365538255,1749773447236,-8764.68,0.00016989,2]
[365538256,1749773447246,-490.0,0.00016989,2]
[365538257,1749773447256,-490.0,0.00016989,2]
[365538258,1749773447267,-4155.56,0.00016989,2]
[365538259,1749773447277,-490.0,0.00016989,2]
[365538260,1749773447287,-3989.18,0.00016989,2]
[365538261,1749773447298,-490.0,0.00016989,2]
[365538262,1749773447308,-490.0,0.00016989,2]
[365538263,1749773447318,-5619.61,0.00016989,2]
[365538264,1749773447329,-2418.19,0.00016989,2]
[365538265,1749773447339,-490.0,0.00016989,2]
[365538266,1749773447353,-493.06,0.00016989,2]
[365538267,1749773447363,-490.0,0.00016989,2]
[365538268,1749773447373,-490.0,0.00016989,2]
[365538269,1749773447383,-490.0,0.00016989,2]
[365538270,1749773447394,-8393.55,0.00016989,2]
[365538271,1749773447402,-490.0,0.00016989,2]
[365538272,1749773447413,-1390.31,0.00016989,2]
[365538273,1749773447424,-490.0,0.00016989,2]
[365538274,1749773447433,-490.0,0.00016989,2]
[365538275,1749773447443,-1618.04,0.00016989,2]
[365538276,1749773447453,-4861.18,0.00016989,2]
[365538277,1749773447463,-490.0,0.00016989,2]
[365538278,1749773447474,-490.0,0.00016989,2]
[365538279,1749773447484,-500.0,0.00016989,2]
[365538280,1749773447495,-490.0,0.00016989,2]
[365538281,1749773447505,-654.57,0.00016989,2]
[365538282,1749773447515,-490.0,0.00016989,2]
[365538283,1749773447534,-882.84,0.00016989,2]
[365538284,1749773447545,-350.79617286,0.00016989,2]
[365538285,1749773447557,-821.39,0.00016989,2]
[365538286,1749773447567,-480.0,0.00016989,2]
[365538287,1749773447696,-490.66,0.00016989,2]
[365538288,1749773447706,-490.0,0.00016989,2]
[365538289,1749773447715,-4244.45,0.00016989,2]
[365538290,1749773447724,-490.0,0.00016989,2]
[365538291,1749773447733,-490.0,0.00016989,2]
[365538292,1749773447742,-490.0,0.00016989,2]
[365538293,1749773447751,-490.0,0.00016989,2]
[365538294,1749773447760,-490.0,0.00016989,2]
[365538295,1749773447769,-232.04292564,0.00016989,2]
[365538296,1749773447779,-8701.02,0.00016989,2]
[365538297,1749773447788,-490.0,0.00016989,2]
[365538298,1749773447798,-600.08,0.00016989,2]
[365538299,1749773447808,-490.0,0.00016989,2]
[365538300,1749773447817,-2228.65,0.00016989,2]
[365538301,1749773447827,-477.57240045,0.00016989,2]
[365538302,1749773447836,-490.0,0.00016989,2]
[365538303,1749773447849,-490.0,0.00016989,2]
[365538304,1749773447859,-4158.76,0.00016989,2]
[365538305,1749773447869,-490.0,0.00016989,2]
[365538306,1749773447879,-1130.85,0.00016989,2]
[365538307,1749773447888,-490.0,0.00016989,2]
[365538308,1749773447898,-490.0,0.00016989,2]
[365538309,1749773447908,-490.0,0.00016989,2]
[365538310,1749773447919,-4299.85,0.00016989,2]
[365538311,1749773447930,-490.0,0.00016989,2]
[365538312,1749773447940,-14435.79,0.00016989,2]
[365538313,1749773447949,-543.64,0.00016989,2]
[365538314,1749773447960,-7334.23,0.00016989,2]
[365538315,1749773447970,-2142.48,0.00016989,2]
[365538316,1749773447980,-490.0,0.00016989,2]
[365538317,1749773447989,-490.0,0.00016989,2]
[365538318,1749773448000,-490.0,0.00016989,2]
[365538319,1749773448010,-2467.96,0.00016989,2]
[365538320,1749773448019,-460.0,0.00016989,2]
[365538321,1749773448030,-490.0,0.00016989,2]
[365538322,1749773448040,-490.0,0.00016989,2]
[365538323,1749773448050,-490.0,0.00016989,2]
[365538324,1749773448060,-490.0,0.00016989,2]